bitfinex/quotes_SOLUSD_20240826
["timestamp","ask_amount","ask_price","bid_price","bid_amount"]
[1724666550646,6.1161,160.9,160.84,11.89714629]
[1724666551162,6.1161,160.9,160.85,1.24317447]
[1724666551376,0.36067861,160.89,160.81,20.0]
[1724666551679,6.1161,160.9,160.85,11.89714629]
[1724666551972,6.1161,160.9,160.86,1.2431675]
[1724666552180,6.1161,160.9,160.85,21.24313834]
[1724666552357,15.6884,160.94,160.85,21.24313834]
[1724666552358,15.6884,160.94,160.86,29.70096853]
[1724666552668,15.6884,160.94,160.87,65.0]
[1724666552864,0.36067861,160.93,160.87,65.0]
[1724666553043,0.36067861,160.93,160.87,20.0]
[1724666553248,6.2337,160.95,160.88,1.24299624]
[1724666553661,6.2337,160.95,160.88,75.94396477]
[1724666553973,22.677,160.99,160.9,29.70096853]
[1724666554271,22.677,160.99,160.91,1.24269247]
[1724666554576,22.677,160.99,160.91,66.24269247]
[1724666555153,22.677,160.99,160.9,1.24263228]
[1724666555455,0.36067861,160.98,160.87,20.0]
[1724666556663,0.36067861,160.98,160.88,45.0]
[1724666556865,0.36067861,160.98,160.89,20.0]
[1724666557374,28.8886,160.99,160.89,20.0]
[1724666557957,28.8886,160.99,160.9,1.24281676]
[1724666558360,28.8886,160.99,160.89,20.0]
[1724666558768,28.8886,160.99,160.9,1.24281634]
[1724666560572,0.36067861,160.98,160.89,20.0]
[1724666560884,22.677,160.99,160.9,75.94363731]
[1724666562879,5.4049393,161.0,160.94,29.70096853]
[1724666563075,5.4049393,161.0,160.98,29.70096853]
[1724666563592,5.4049393,161.0,160.96,29.70096853]
[1724666563781,5.4049393,161.0,160.97,20.0]
[1724666563967,5.4049393,161.0,160.98,1.24219592]
[1724666564167,5.4049393,161.0,160.98,45.0]
[1724666564386,5.4049393,161.0,160.98,46.24207635]
[1724666564688,5.4049393,161.0,160.97,20.0]
[1724666565788,5.4049393,161.0,160.98,1.24218861]
[1724666566477,5.4049393,161.0,160.97,20.0]
[1724666566478,5.4049393,161.0,160.99,1.24208689]
[1724666567466,5.4049393,161.0,160.98,1.24207247]
[1724666567668,5.4049393,161.0,160.99,1.24206939]
[1724666568590,5.4049393,161.0,160.97,20.0]
[1724666568780,5.4049393,161.0,160.98,1.2420748]
[1724666568975,5.4049393,161.0,160.97,20.0]
[1724666569671,5.4049393,161.0,160.98,1.24217664]
[1724666570067,5.4049393,161.0,160.97,20.0]
[1724666570305,5.4049393,161.0,160.98,30.94305293]
[1724666570607,5.4049393,161.0,160.99,21.2420674]
[1724666571211,5.4049393,161.0,160.99,20.0]
[1724666572201,5.4049393,161.0,160.99,1.24210402]
[1724666575702,5.4049393,161.0,160.99,65.0]
[1724666575896,5.4049393,161.0,160.99,96.24190005]
[1724666577212,5.4049393,161.0,160.99,104.16414879]
[1724666578100,5.4049393,161.0,160.99,116.01946147]
[1724666579318,15.1427,161.07,160.99,116.01946147]
[1724666579319,6.2644,161.08,161.01,20.0]
[1724666579624,6.2644,161.08,161.06,11.85531268]
[1724666579924,22.9056,161.12,161.06,11.85531268]
[1724666580119,22.9056,161.12,161.07,1.24158454]
[1724666580334,22.9056,161.12,161.06,11.85531268]
[1724666580498,22.9056,161.12,161.03,20.0]
[1724666580499,22.9056,161.12,161.08,11.85531268]
[1724666582047,6.3284,161.12,161.09,1.24138522]
[1724666582538,6.3284,161.12,161.06,29.62011149]
[1724666582732,6.3284,161.12,161.07,45.0]
[1724666584342,7.71608691,161.16,161.07,45.0]
[1724666585214,29.62011149,161.15,161.03,49.62011149]
[1724666585410,35.82571149,161.15,161.04,20.0]
[1724666585611,6.56657861,161.14,161.04,20.0]
[1724666585822,6.2066,161.12,161.03,29.62011149]
[1724666586027,0.36067861,161.11,161.03,29.62011149]
[1724666586238,6.2061,161.14,161.03,29.62011149]
[1724666586549,6.2061,161.13,161.04,1.24157872]
[1724666586905,6.2061,161.13,161.03,29.62011149]
[1724666587104,0.36067861,161.12,161.03,29.62011149]
[1724666587304,6.56727861,161.12,161.04,20.0]
[1724666587710,6.2058,161.14,161.05,1.24162617]
[1724666587923,6.56687861,161.13,161.04,20.0]
[1724666588529,6.2062,161.13,161.05,1.24162474]
[1724666588718,6.2058,161.14,161.04,20.0]
[1724666588915,6.56647861,161.14,161.05,45.0]
[1724666589121,6.56647861,161.14,161.05,74.62011149]
[1724666589426,397.6554083,161.16,161.07,29.62011149]
[1724666589630,403.8604083,161.16,161.08,1.2413361]
[1724666590504,397.6554083,161.16,161.07,49.62011149]
[1724666590706,397.6554083,161.16,161.09,29.62011149]
[1724666591009,397.6554083,161.16,161.1,1.24115494]
[1724666591209,397.6554083,161.16,161.11,30.86129615]
[1724666591746,391.1218083,161.16,161.12,45.0]
[1724666592331,0.8218083,161.16,161.13,29.62011149]
[1724666594130,0.8218083,161.16,161.14,1.24085464]
[1724666594332,0.8218083,161.16,161.15,1.2407727]
[1724666595009,0.8218083,161.16,161.15,64.84191149]
[1724666595215,0.36067861,161.24,161.15,21.55306512]
[1724666595409,6.2027,161.22,161.11,45.47261149]
[1724666595632,0.36067861,161.21,161.12,69.03831886]
[1724666595936,0.36067861,161.21,161.13,1.55319957]
[1724666596321,0.36067861,161.21,161.13,1.55316415]
[1724666596518,0.36067861,161.22,161.13,1.55316415]
[1724666596920,0.36067861,161.22,161.12,65.0]
[1724666597119,0.36067861,161.22,161.13,1.55318585]
[1724666597319,0.36067861,161.22,161.12,65.0]
[1724666597617,15.2652,161.23,161.13,30.86095763]
[1724666597818,15.2652,161.23,161.14,20.0]
[1724666598017,15.2652,161.23,161.15,1.24077277]
[1724666600226,15.2652,161.23,161.14,20.0]
[1724666600227,0.36067861,161.22,161.14,20.0]
[1724666601539,6.56337861,161.22,161.14,20.0]
[1724666602029,0.36067861,161.22,161.14,20.0]
[1724666602427,15.2652,161.23,161.15,1.24089889]
[1724666602740,15.2652,161.23,161.16,1.24073471]
[1724666603238,15.2652,161.23,161.15,29.62011149]
[1724666604540,15.2652,161.23,161.16,1.2407726]
[1724666605442,15.2652,161.23,161.15,29.62011149]
[1724666605819,0.36067861,161.22,161.15,29.62011149]
[1724666606425,6.1484,161.25,161.19,29.62011149]
[1724666606628,6.1484,161.25,161.17,29.62011149]
[1724666606834,6.1484,161.25,161.18,65.0]
[1724666607538,6.1484,161.25,161.19,1.24044893]
[1724666607738,6.1484,161.25,161.18,65.0]
[1724666608120,6.1484,161.25,161.19,1.24037952]
[1724666608344,6.1484,161.25,161.18,85.0]
[1724666608545,16.5914,161.27,161.19,29.62011149]
[1724666608838,23.48117861,161.3,161.2,20.0]
[1724666609144,0.36067861,161.29,161.2,20.0]
[1724666610040,0.36067861,161.29,161.21,29.62011149]
[1724666610743,23.1205,161.3,161.21,29.62011149]
[1724666610744,23.1205,161.3,161.22,1.24023294]
[1724666610930,23.1205,161.3,161.23,29.62011149]
[1724666611127,7.1191,161.3,161.25,29.62011149]
[1724666611443,7.1191,161.3,161.26,1.24007151]
[1724666611741,7.1191,161.3,161.27,1.2398916]
[1724666611742,1.1,161.3,161.27,1.2398916]
[1724666611925,1.1,161.3,161.28,1.23993083]
[1724666612428,1.1,161.3,161.24,30.86002327]
[1724666612616,1.1,161.3,161.22,29.62011149]
[1724666613045,1.1,161.3,161.24,29.62011149]
[1724666613243,1.1,161.3,161.25,1.24016257]
[1724666614344,1.1,161.3,161.26,29.62011149]
[1724666615046,1.1,161.3,161.27,1.23988753]
[1724666616034,1.1,161.3,161.26,29.62011149]
[1724666616459,1.1,161.3,161.28,29.62011149]
[1724666616631,1.1,161.3,161.29,1.23966791]
[1724666616955,1.1,161.3,161.28,29.62011149]
[1724666617164,1.1,161.3,161.29,1.23970998]
[1724666617328,1.1,161.3,161.24,29.62011149]
[1724666617531,1.1,161.3,161.25,21.23995597]
[1724666618154,1.1,161.3,161.26,74.62011149]
[1724666618324,1.1,161.3,161.27,1.23984676]
[1724666619157,1.1,161.3,161.28,29.62011149]
[1724666619359,1.1,161.3,161.29,45.0]
[1724666620346,1.1,161.3,161.29,1.23962848]
[1724666621457,1.1,161.3,161.28,29.62011149]
[1724666621627,1.1,161.3,161.24,29.62011149]
[1724666621840,1.1,161.3,161.25,1.24005565]
[1724666622362,1.1,161.3,161.24,29.62011149]
[1724666622660,1.1,161.3,161.28,29.62011149]
[1724666622836,1.1,161.3,161.29,1.23973143]
[1724666623773,1.1,161.3,161.29,52.46273143]
[1724666624261,1.1,161.3,161.29,46.23973143]
[1724666625750,1.1,161.3,161.29,71.223]
[1724666627786,6.4888,161.37,161.31,26.223]
[1724666627994,6.4888,161.37,161.34,29.62011149]
[1724666628281,0.8218083,161.48,161.36,11.80656069]
[1724666628282,6.5294,161.44,161.36,11.80656069]
[1724666628452,6.5294,161.44,161.39,11.80656069]
[1724666628658,0.8218083,161.48,161.41,11.80656069]
[1724666628898,0.8218083,161.48,161.43,11.80656069]
[1724666629174,0.8218083,161.48,161.41,11.80656069]
[1724666629385,0.8218083,161.48,161.39,20.0]
[1724666629386,0.8218083,161.48,161.43,11.80656069]
[1724666629967,0.8218083,161.48,161.44,1.23861459]
[1724666632147,0.8218083,161.48,161.42,29.48691363]
[1724666632454,6.1946,161.43,161.35,20.0]
[1724666632657,6.195,161.42,161.35,49.48691363]
[1724666633113,0.36067861,161.46,161.35,29.48691363]
[1724666633416,6.1961,161.39,161.33,29.48691363]
[1724666633622,6.1961,161.39,161.31,49.48691363]
[1724666634002,6.1965,161.38,161.31,49.48691363]
[1724666634716,6.1962,161.39,161.32,1.23934746]
[1724666635020,6.1962,161.39,161.33,30.72625995]
[1724666635202,6.1965,161.38,161.33,30.72625995]
[1724666635399,6.1969,161.37,161.31,35.70991363]
[1724666635594,6.1969,161.37,161.31,29.48691363]
[1724666637036,29.48691363,161.39,161.29,8.31557141]
[1724666637216,6.1989,161.32,161.25,20.0]
[1724666637413,16.4735,161.37,161.25,51.96958061]
[1724666637414,0.36067861,161.36,161.25,51.96958061]
[1724666637616,6.1991,161.4,161.25,51.96958061]
[1724666637617,6.193,161.45,161.36,20.0]
[1724666637852,6.193,161.45,161.37,1.23895326]
[1724666638150,29.48691363,161.41,161.29,20.0]
[1724666638307,0.36067861,161.4,161.29,2.4821231]
[1724666638512,29.48691363,161.39,161.3,1.2395434]
[1724666638733,6.1972,161.37,161.3,1.2395434]
[1724666639330,6.198,161.35,161.3,1.2395434]
[1724666639511,6.0399,161.34,161.27,20.0]
[1724666639940,7.4674083,161.48,161.33,29.48691363]
[1724666640110,15.4681,161.47,161.35,29.48691363]
[1724666640311,15.4681,161.47,161.36,1.23900916]
[1724666640508,15.4681,161.47,161.37,49.48691363]
[1724666640810,15.4681,161.47,161.38,45.0]
[1724666641217,7.4674083,161.48,161.39,49.48691363]
[1724666641410,7.4674083,161.48,161.41,49.48691363]
[1724666641626,7.4674083,161.48,161.42,1.23851536]
[1724666641938,0.8218083,161.48,161.43,21.23837818]
[1724666642136,0.8218083,161.48,161.44,29.48691363]
[1724666642319,0.8218083,161.48,161.45,1.23840478]
[1724666642634,0.8218083,161.48,161.46,1.23839272]
[1724666642807,0.8218083,161.48,161.46,30.72530635]
[1724666643011,0.8218083,161.48,161.46,1.23839272]
[1724666643714,0.8218083,161.48,161.43,20.0]
[1724666644042,0.8218083,161.48,161.44,46.2384712]
[1724666644217,0.8218083,161.48,161.44,45.0]
[1724666644419,0.8218083,161.48,161.43,20.0]
[1724666645926,0.8218083,161.48,161.39,20.0]
[1724666646124,0.8218083,161.48,161.4,20.0]
[1724666646329,15.6112,161.47,161.41,1.23885626]
[1724666646536,15.6112,161.47,161.36,3.72004262]
[1724666646923,15.6112,161.47,161.37,20.0]
[1724666647118,6.56487861,161.46,161.36,2.48115543]
[1724666647324,12.75837861,161.46,161.35,63.08103317]
[1724666647529,0.36067861,161.45,161.35,63.08103317]
[1724666647856,6.55467861,161.45,161.33,20.0]
[1724666648142,6.194,161.45,161.33,20.0]
[1724666648345,6.55467861,161.45,161.33,20.0]
[1724666648551,6.55467861,161.45,161.33,22.48152186]
[1724666648931,12.3976,161.46,161.35,56.85803317]
[1724666649249,6.2042,161.46,161.38,36.85803317]
[1724666649419,6.2042,161.46,161.39,1.23881279]
[1724666649618,6.2042,161.46,161.4,1.23879348]
[1724666649942,0.8218083,161.48,161.42,20.0]
[1724666650140,0.8218083,161.48,161.44,36.85803317]
[1724666650355,0.8218083,161.48,161.45,1.23846586]
[1724666650573,0.8218083,161.48,161.46,1.23846561]
[1724666651657,0.8218083,161.48,161.45,1.23848217]
[1724666651945,0.8218083,161.48,161.46,1.23847411]
[1724666652846,0.8218083,161.48,161.45,1.23847139]
[1724666653155,0.8218083,161.48,161.47,56.85803317]
[1724666653361,0.8218083,161.48,161.47,28.99773481]
[1724666653653,0.8218083,161.48,161.47,65.0]
[1724666653829,0.8218083,161.48,161.45,20.0]
[1724666654146,0.8218083,161.48,161.46,1.2382422]
[1724666654357,0.8218083,161.48,161.44,8.70293209]
[1724666654546,0.8218083,161.48,161.45,1.23839829]
[1724666654721,0.8218083,161.48,161.46,1.23831548]
[1724666654921,0.8218083,161.48,161.44,45.0]
[1724666655238,0.8218083,161.48,161.43,20.0]
[1724666655429,0.8218083,161.48,161.44,1.23838372]
[1724666655638,0.8218083,161.48,161.44,21.23838372]
[1724666656282,0.8218083,161.48,161.44,23.71855281]
[1724666656758,0.8218083,161.48,161.45,1.23847468]
[1724666656946,0.8218083,161.48,161.46,1.23840382]
[1724666657267,0.8218083,161.48,161.44,20.0]
[1724666658596,0.8218083,161.48,161.43,20.0]
[1724666658793,21.1504,161.47,161.36,20.0]
[1724666658998,37.21871178,161.46,161.37,32.48086591]
[1724666659165,37.21871178,161.46,161.34,20.0]
[1724666659395,6.55457861,161.45,161.35,2.48109887]
[1724666659700,36.85803317,161.46,161.36,22.48109887]
[1724666659903,0.36067861,161.45,161.37,2.48109887]
[1724666660182,37.21871178,161.46,161.35,2.48109887]
[1724666660495,0.36067861,161.45,161.34,20.0]
[1724666660674,0.36067861,161.45,161.29,6.2456]
[1724666660675,36.85803317,161.43,161.36,2.48120815]
[1724666660874,0.36067861,161.42,161.31,2.48120815]
[1724666661177,0.36067861,161.42,161.32,2.48120815]
[1724666661379,0.36067861,161.42,161.33,2.48120815]
[1724666661583,43.05263317,161.43,161.34,3.72051191]
[1724666661584,6.1946,161.43,161.34,3.72051191]
[1724666661883,0.36067861,161.42,161.33,2.48120815]
[1724666662092,0.36067861,161.43,161.34,2.48120815]
[1724666662263,0.36067861,161.43,161.35,2.48120815]
[1724666662467,6.1947,161.43,161.33,2.48120815]
[1724666662682,6.1947,161.43,161.3,20.0]
[1724666662683,6.1947,161.43,161.34,2.48120815]
[1724666662889,6.1942,161.44,161.35,1.23933752]
[1724666663067,36.85803317,161.46,161.36,1.23921709]
[1724666663068,6.1946,161.43,161.36,1.23921709]
[1724666663271,6.55527861,161.43,161.33,2.48120815]
[1724666663476,6.195,161.42,161.34,2.48120815]
[1724666663777,0.36067861,161.41,161.31,20.0]
[1724666663977,0.36067861,161.41,161.32,2.48166565]
[1724666664277,6.55617861,161.41,161.33,2.48166565]
[1724666664477,6.1185,161.39,161.32,2.48166565]
[1724666664700,0.36067861,161.38,161.33,2.48166565]
[1724666664886,0.36067861,161.38,161.29,2.48166565]
[1724666665092,0.36067861,161.38,161.3,2.48166565]
[1724666665395,0.36067861,161.38,161.31,2.48166565]
[1724666665694,0.36067861,161.38,161.28,26.223]
[1724666665695,6.1185,161.39,161.32,2.48166565]
[1724666665895,6.1185,161.39,161.33,1.2394727]
[1724666666199,0.36067861,161.38,161.31,2.48166565]
[1724666666406,6.1185,161.39,161.32,23.72111889]
[1724666666700,6.1185,161.39,161.33,3.72090201]
[1724666667108,6.012,161.43,161.33,2.48166565]
[1724666667309,6.012,161.43,161.34,20.0]
[1724666667609,6.012,161.43,161.36,20.0]
[1724666667807,6.012,161.43,161.37,22.48166565]
[1724666668400,0.36067861,161.46,161.38,84.33969882]
[1724666668609,6.97297861,161.47,161.39,22.48166565]
[1724666669010,6.6123,161.47,161.39,22.48166565]
[1724666669184,6.6123,161.47,161.4,1.23886821]
[1724666670085,6.6123,161.47,161.41,1.23871023]
[1724666670282,6.6123,161.47,161.41,2.48076073]
[1724666670485,6.6123,161.47,161.39,26.223]
[1724666670683,6.6123,161.47,161.4,2.4806575]
[1724666671091,6.6123,161.47,161.41,1.23873801]
[1724666671299,0.36067861,161.46,161.4,2.4806575]
[1724666671886,6.6123,161.47,161.41,1.23887131]
[1724666672188,0.36067861,161.46,161.4,2.4806575]
[1724666672393,6.6123,161.47,161.4,2.4806575]
[1724666672711,0.36067861,161.46,161.39,22.4806575]
[1724666672913,0.36067861,161.46,161.4,2.4806575]
[1724666673121,0.8218083,161.48,161.41,36.85803317]
[1724666673328,0.8218083,161.48,161.41,2.48044822]
[1724666673329,1.18248691,161.48,161.41,2.48044822]
[1724666673490,1.18248691,161.48,161.4,2.48044822]
[1724666673813,0.8218083,161.48,161.41,2.48044822]
[1724666674023,0.8218083,161.48,161.4,2.48044822]
[1724666674222,0.8218083,161.48,161.42,1.23873068]
[1724666674388,0.8218083,161.48,161.42,2.48044822]
[1724666674588,0.8218083,161.48,161.4,2.48044822]
[1724666674784,0.8218083,161.48,161.41,2.48044822]
[1724666675022,0.8218083,161.48,161.42,3.71903734]
[1724666675307,0.8218083,161.48,161.43,3.71899995]
[1724666675511,0.8218083,161.48,161.43,1.23855173]
[1724666675916,0.8218083,161.48,161.43,20.0]
[1724666676089,0.8218083,161.48,161.42,8.70344822]
[1724666676429,0.8218083,161.48,161.42,2.48044822]
[1724666676916,0.8218083,161.48,161.41,56.53848139]
[1724666677902,0.8218083,161.48,161.42,1.2385784]
[1724666678191,0.8218083,161.48,161.41,56.53848139]
[1724666678192,0.8218083,161.48,161.41,36.53848139]
[1724666679016,0.8218083,161.48,161.42,7.46163259]
[1724666679195,0.8218083,161.48,161.43,1.23849012]
[1724666679618,0.8218083,161.48,161.42,6.223]
[1724666680215,0.8218083,161.48,161.41,20.0]
[1724666682128,0.8218083,161.48,161.39,43.08103317]
[1724666682429,1.18248691,161.48,161.39,43.08103317]
[1724666682606,22.9444,161.46,161.33,20.0]
[1724666682793,6.1945,161.44,161.33,9.25844688]
[1724666682992,0.36067861,161.44,161.33,20.0]
[1724666683198,6.1938,161.45,161.34,4.61945846]
[1724666683407,0.36067861,161.44,161.32,3.38029209]
[1724666683704,6.1943,161.44,161.32,9.60329209]
[1724666684103,0.36067861,161.43,161.32,9.60329209]
[1724666685237,0.36067861,161.43,161.32,15.48503462]
[1724666685435,43.39613317,161.42,161.32,3.38029209]
[1724666685609,0.36067861,161.41,161.31,3.38029209]
[1724666685805,0.36067861,161.41,161.27,72.31423317]
[1724666686010,0.36067861,161.41,161.28,9.26931032]
[1724666686317,16.2757,161.38,161.28,3.38415589]
[1724666686522,0.36067861,161.37,161.28,3.38415589]
[1724666686930,16.63637861,161.38,161.29,2.48230984]
[1724666687134,16.63637861,161.38,161.3,2.48230984]
[1724666687438,16.63637861,161.38,161.31,2.48230984]
[1724666687623,16.2757,161.38,161.3,20.0]
[1724666687818,16.2757,161.38,161.31,3.721691]
[1724666688153,7.0420083,161.48,161.37,20.0]
[1724666688429,7.0420083,161.48,161.38,7.09871631]
[1724666688615,7.0420083,161.48,161.39,60.5786414]
[1724666688813,7.0420083,161.48,161.4,7.09689211]
[1724666689012,7.0420083,161.48,161.41,2.4817018]
[1724666689235,7.0420083,161.48,161.42,3.72042575]
[1724666689533,7.0420083,161.48,161.43,3.72030543]
[1724666689723,7.0420083,161.48,161.41,2.48032529]
[1724666690114,7.0420083,161.48,161.39,20.0]
[1724666690319,7.0420083,161.48,161.4,2.48065419]
[1724666690533,7.0420083,161.48,161.37,20.0]
[1724666690534,0.36067861,161.47,161.41,2.48065419]
[1724666690745,0.36067861,161.47,161.39,2.48076392]
[1724666691034,0.36067861,161.47,161.4,2.48076392]
[1724666691232,6.1931,161.47,161.38,2.48076392]
[1724666691544,6.1931,161.47,161.37,3.37649032]
[1724666691545,6.1931,161.47,161.39,2.48076392]
[1724666691713,7.0420083,161.48,161.4,1.23909992]
[1724666692139,7.40268691,161.48,161.36,65.63910131]
[1724666692450,13.59548691,161.48,161.37,2.48100739]
[1724666692741,13.59548691,161.48,161.38,2.48100739]
[1724666692943,13.59548691,161.48,161.39,2.48100739]
[1724666693117,13.59548691,161.48,161.37,2.48100739]
[1724666693319,13.59548691,161.48,161.38,2.48100739]
[1724666693532,13.59548691,161.48,161.39,2.48100739]
[1724666693533,6.55407861,161.47,161.39,2.48100739]
[1724666693729,6.55407861,161.47,161.35,5.86038383]
[1724666693935,6.1934,161.47,161.36,2.48100739]
[1724666694128,6.1934,161.47,161.37,2.48100739]
[1724666694335,6.1934,161.47,161.38,4.03164087]
[1724666694640,6.1934,161.47,161.39,4.03164087]
[1724666694836,0.8218083,161.48,161.42,36.85803317]
[1724666695030,0.8218083,161.48,161.45,36.85803317]
[1724666695232,0.8218083,161.48,161.46,25.26812972]
[1724666695459,0.8218083,161.48,161.47,1.54995498]
[1724666695947,0.8218083,161.48,161.47,4.02985046]
[1724666696159,0.8218083,161.48,161.47,1.54995498]
[1724666696370,0.8218083,161.48,161.41,60.57649791]
[1724666696654,0.8218083,161.48,161.42,4.02998702]
[1724666696955,0.8218083,161.48,161.43,5.26858127]
[1724666697136,0.8218083,161.48,161.44,4.02998702]
[1724666697340,0.8218083,161.48,161.45,2.78872987]
[1724666697530,0.8218083,161.48,161.42,3.71853381]
[1724666697733,0.8218083,161.48,161.43,5.26871427]
[1724666697937,0.8218083,161.48,161.44,4.03007512]
[1724666698136,0.8218083,161.48,161.45,1.55017964]
[1724666698452,0.8218083,161.48,161.43,1.23863915]
[1724666698619,0.8218083,161.48,161.44,4.03047891]
[1724666698824,0.8218083,161.48,161.45,1.55017931]
[1724666699025,0.8218083,161.48,161.44,2.4802996]
[1724666699026,0.8218083,161.48,161.42,2.4802996]
[1724666699240,0.8218083,161.48,161.43,4.03047986]
[1724666699433,0.8218083,161.48,161.39,22.4802996]
[1724666699746,0.8218083,161.48,161.4,4.03067955]
[1724666699943,0.8218083,161.48,161.41,4.03067955]
[1724666700244,0.8218083,161.48,161.42,4.03067955]
[1724666700445,0.8218083,161.48,161.43,1.55037995]
[1724666700643,0.8218083,161.48,161.39,2.4802996]
[1724666700644,0.8218083,161.48,161.44,1.55031407]
[1724666700827,0.8218083,161.48,161.45,1.2387529]
[1724666701025,0.8218083,161.48,161.42,3.71904985]
[1724666701226,0.8218083,161.48,161.43,3.71895994]
[1724666701426,0.8218083,161.48,161.44,4.03061576]
[1724666701729,0.8218083,161.48,161.46,20.0]
[1724666702034,0.8218083,161.48,161.47,5.26879617]
[1724666702237,0.8218083,161.48,161.47,105.88864893]
[1724666702958,0.8218083,161.48,161.47,85.88864893]
[1724666703246,0.8218083,161.48,161.47,87.12677767]
[1724666704037,0.8218083,161.48,161.47,40.88659958]
[1724666704947,0.8218083,161.48,161.47,4.02856641]
[1724666705152,0.8218083,161.48,161.47,1.54944862]
[1724666705324,0.8218083,161.48,161.43,4.02856641]
[1724666705523,0.8218083,161.48,161.44,4.02856641]
[1724666705724,0.8218083,161.48,161.38,72.41233317]
[1724666705725,0.8218083,161.48,161.45,4.02856641]
[1724666705923,0.8218083,161.48,161.46,1.54944862]
[1724666706146,0.8218083,161.48,161.4,4.02856641]
[1724666706340,0.8218083,161.48,161.41,34.02856641]
[1724666706549,0.8218083,161.48,161.42,5.26731989]
[1724666706732,6.3229,161.47,161.43,5.26731988]
[1724666707051,6.3229,161.47,161.44,1.54944862]
[1724666707242,6.3229,161.47,161.45,1.54944862]
[1724666707431,6.3229,161.47,161.39,2.47911779]
[1724666707630,6.3229,161.47,161.38,20.0]
[1724666707631,6.3229,161.47,161.4,4.02920622]
[1724666707850,6.3229,161.47,161.41,4.02920622]
[1724666708050,6.3229,161.47,161.42,4.02920622]
[1724666708228,6.3229,161.47,161.43,1.55008843]
[1724666708433,6.3229,161.47,161.44,1.55008843]
[1724666708634,6.3229,161.47,161.45,1.55008843]
[1724666708850,6.3229,161.47,161.42,2.47911779]
[1724666709053,6.3229,161.47,161.43,4.02916089]
[1724666709235,6.3229,161.47,161.44,1.5500431]
[1724666709430,6.3229,161.47,161.45,1.5500431]
[1724666709746,6.3229,161.47,161.43,3.71787731]
[1724666709945,6.3229,161.47,161.44,1.54997124]
[1724666710157,6.3229,161.47,161.4,1.23875952]
[1724666710455,6.3229,161.47,161.45,1.54997092]
[1724666710656,6.3229,161.47,161.46,1.54997092]
[1724666710855,6.3229,161.47,161.43,4.0299244]
[1724666711052,6.3229,161.47,161.44,1.54997092]
[1724666711254,6.3229,161.47,161.45,1.54997092]
[1724666711457,6.3229,161.47,161.42,2.47995348]
[1724666711637,6.3229,161.47,161.43,4.02997522]
[1724666711838,6.3229,161.47,161.44,1.55002174]
[1724666712040,6.3229,161.47,161.45,1.55002174]
[1724666712240,0.36067861,161.46,161.42,4.03022965]
[1724666712447,0.36067861,161.46,161.37,2.47995348]
[1724666712647,0.36067861,161.46,161.38,4.03038168]
[1724666712855,12.5161,161.47,161.39,4.03038168]
[1724666713055,12.5161,161.47,161.4,5.26950393]
[1724666713056,6.3229,161.47,161.4,5.26950393]
[1724666713237,6.3229,161.47,161.41,4.03038168]
[1724666713438,0.8218083,161.48,161.42,42.1272553]
[1724666713647,0.8218083,161.48,161.43,5.26913701]
[1724666713854,0.8218083,161.48,161.44,4.03065728]
[1724666714157,0.8218083,161.48,161.45,5.26911827]
[1724666714336,0.8218083,161.48,161.46,5.26912336]
[1724666714532,0.8218083,161.48,161.47,1.5502528]
[1724666714757,0.8218083,161.48,161.47,2.78868757]
[1724666715441,0.8218083,161.48,161.47,1.5502528]
[1724666716438,0.8218083,161.48,161.45,1.5502528]
[1724666716663,0.8218083,161.48,161.42,36.85803317]
[1724666716845,0.8218083,161.48,161.46,1.55005795]
[1724666717043,0.8218083,161.48,161.43,1.55005795]
[1724666717252,0.8218083,161.48,161.43,2.48009223]
[1724666717464,0.8218083,161.48,161.44,4.03014987]
[1724666717645,0.8218083,161.48,161.45,1.55005764]
[1724666717848,0.8218083,161.48,161.46,1.55007953]
[1724666718050,0.8218083,161.48,161.43,2.48009223]
[1724666718353,0.8218083,161.48,161.44,5.26871707]
[1724666718556,0.8218083,161.48,161.45,4.03010797]
[1724666718762,0.8218083,161.48,161.46,1.55001574]
[1724666718936,0.8218083,161.48,161.45,2.48009223]
[1724666719142,0.8218083,161.48,161.44,2.48009223]
[1724666719498,0.8218083,161.48,161.45,2.78872212]
[1724666719758,0.8218083,161.48,161.46,2.78862025]
[1724666720065,0.8218083,161.48,161.46,1.23850996]
[1724666720244,0.8218083,161.48,161.47,1.55000522]
[1724666720448,0.8218083,161.48,161.45,2.48009223]
[1724666720660,0.8218083,161.48,161.46,1.55004719]
[1724666720865,0.8218083,161.48,161.44,3.7186043]
[1724666721057,0.8218083,161.48,161.45,1.55007924]